bitfinex/quotes_ETHUSD_20250824
["timestamp","ask_amount","ask_price","bid_price","bid_amount"]
[1756047822163,0.042,4802.4,4802.3,14.42379146]
[1756047822370,0.042,4802.4,4802.3,14.71159146]
[1756047822625,0.042,4802.4,4802.3,11.13559146]
[1756047822824,0.042,4802.4,4802.3,14.71159146]
[1756047823028,0.042,4802.4,4802.3,15.17039146]
[1756047825233,0.042,4802.4,4802.3,16.77139146]
[1756047825644,0.042,4802.4,4802.3,17.43139146]
[1756047826819,0.042,4802.4,4802.3,24.36117696]
[1756047827935,0.141,4802.4,4802.3,0.75945592]
[1756047828142,0.141,4802.4,4802.3,0.001]
[1756047828143,7.3765855,4802.4,4802.3,0.001]
[1756047828325,7.5175855,4802.4,4802.3,3.576]
[1756047828501,8.27134405,4802.4,4802.3,3.576]
[1756047829336,1.34155855,4802.4,4802.3,3.576]
[1756047829703,0.5878,4802.4,4802.3,3.576]
[1756047831914,0.5878,4802.4,4802.3,0.001]
[1756047832409,0.5878,4802.4,4802.3,3.576]
[1756047835333,0.282,4802.4,4802.3,3.576]
[1756047836264,0.5879,4802.4,4802.3,3.576]
[1756047836468,1.65369,4802.4,4802.3,3.576]
[1756047839467,0.282,4802.4,4802.3,3.576]
[1756047839685,0.042,4802.4,4802.3,6.51733554]
[1756047841682,0.042,4802.4,4802.3,17.10712104]
[1756047844261,0.042,4802.4,4802.3,6.60233554]
[1756047844460,0.042,4802.4,4802.3,11.96683117]
[1756047845430,1e-08,4804.8,4804.6,0.66]
[1756047845709,1e-08,4804.8,4804.7,27.13878111]
[1756047845855,1e-08,4804.8,4804.7,26.06379114]
[1756047846055,1e-08,4804.8,4804.7,18.63180459]
[1756047846910,1e-08,4804.8,4804.7,17.88843359]
[1756047847116,1e-08,4804.8,4804.7,18.74119224]
[1756047849407,1e-08,4804.8,4804.7,17.32119224]
[1756047850307,1e-08,4804.8,4804.7,17.32061713]
[1756047851972,1e-08,4804.8,4804.7,17.40398513]
[1756047852753,0.02,4806.8,4806.3,2.08060254]
[1756047852864,0.05,4810.0,4806.3,2.08060254]
[1756047852865,0.01,4810.8,4809.1,2.07938503]
[1756047853222,0.083336,4809.7,4809.3,0.104]
[1756047853391,0.452,4810.7,4810.1,0.104]
[1756047853698,0.624892,4810.6,4810.2,3.649]
[1756047854021,0.297,4810.3,4809.4,1.6]
[1756047854208,0.297,4810.3,4809.5,3.653]
[1756047854691,0.297,4810.3,4810.2,0.104]
[1756047855002,0.297,4810.3,4810.2,3.76]
[1756047856101,0.5544,4810.3,4810.2,0.104]
[1756047856398,7.31356092,4810.3,4809.0,1.6]
[1756047856700,3.0,4809.8,4808.9,3.658]
[1756047856862,0.2966,4809.0,4808.9,3.658]
[1756047857403,0.2578,4809.6,4808.9,3.658]
[1756047857999,2.13226458,4810.3,4808.9,3.658]
[1756047858307,1.68026458,4810.3,4809.0,1.1221]
[1756047858490,0.452,4810.7,4809.2,0.66]
[1756047858670,0.624837,4811.0,4809.4,0.66]
[1756047859011,0.452,4811.2,4809.5,5.73821821]
[1756047859195,0.624798,4811.2,4809.7,0.66]
[1756047859364,0.04,4811.4,4810.7,0.2929]
[1756047859560,0.04,4811.4,4810.7,5.5529]
[1756047859790,0.114,4810.8,4810.7,1.599]
[1756047859979,0.114,4810.8,4810.7,5.261]
[1756047860388,0.5625,4810.8,4810.7,5.262]
[1756047860986,3.5625,4810.8,4810.7,5.262]
[1756047861188,5.44936447,4810.8,4810.7,5.262]
[1756047861589,2.44936447,4810.8,4810.7,5.262]
[1756047861777,0.5625,4810.8,4810.7,5.262]
[1756047862180,0.5625,4810.8,4810.7,1.599]
[1756047863404,0.4625,4810.8,4810.6,3.662]
[1756047863812,0.4485,4810.7,4810.6,3.662]
[1756047864016,0.2971,4810.7,4810.6,3.662]
[1756047864883,0.2971,4810.7,4808.5,0.001]
[1756047864884,0.29294169,4810.7,4808.5,0.001]
[1756047865097,3.0791,4810.6,4808.6,2.0445]
[1756047865323,3.0791,4810.6,4808.7,0.20455]
[1756047865324,1.86731864,4810.5,4808.7,0.20455]
[1756047865878,0.365,4810.4,4808.8,3.86504307]
[1756047866080,0.365,4810.4,4808.9,0.19004307]
[1756047866607,0.624959,4810.3,4809.8,0.104]
[1756047866812,0.0036,4809.9,4809.8,0.104]
[1756047866975,0.0036,4809.9,4809.8,3.779]
[1756047867682,0.0036,4809.9,4809.8,3.799]
[1756047868216,0.624959,4810.3,4809.8,3.799]
[1756047868378,0.002,4810.7,4809.8,3.799]
[1756047868583,0.624896,4810.6,4810.3,0.104]
[1756047868876,0.002,4810.7,4810.4,3.671]
[1756047869079,0.002,4810.7,4810.6,0.104]
[1756047869802,0.002,4810.7,4810.6,1.04119451]
[1756047869986,0.002,4810.7,4810.6,1.13309451]
[1756047870187,0.002,4810.7,4810.6,4.0739]
[1756047870682,0.002,4810.7,4810.6,4.5194]
[1756047872096,0.002,4810.7,4810.6,4.5174]
[1756047873496,0.002,4810.7,4810.6,4.70860208]
[1756047873897,0.002,4810.7,4810.6,1.04160208]
[1756047874116,0.002,4810.7,4810.6,4.5174]
[1756047874513,0.002,4810.7,4810.6,4.70881075]
[1756047875022,0.002,4810.7,4810.6,5.33959183]
[1756047875687,0.002,4810.7,4810.6,8.0783346]
[1756047876039,0.005,4811.1,4811.0,2.07856994]
[1756047876223,0.04,4811.4,4811.3,2.07844033]
[1756047876524,0.04,4811.4,4811.3,8.22775108]
[1756047876690,0.04,4811.4,4811.3,10.00204358]
[1756047876890,0.04,4811.4,4811.3,13.00204358]
[1756047877087,0.04,4811.4,4811.3,16.67104358]
[1756047877528,0.04,4811.4,4811.3,10.92360325]
[1756047877729,0.04,4811.4,4811.3,16.67104358]
[1756047878300,0.04,4811.4,4811.3,16.47963283]
[1756047878506,0.04,4811.4,4811.3,14.40863283]
[1756047878708,0.04,4811.4,4811.3,0.3009]
[1756047879032,0.04,4811.4,4811.3,6.0154]
[1756047879260,0.04,4811.4,4811.3,6.0564]
[1756047879958,0.04,4811.4,4811.3,6.7164]
[1756047880156,0.04,4811.4,4811.3,3.0044]
[1756047880374,0.04,4811.4,4811.3,2.5589]
[1756047880668,0.04,4811.4,4811.3,6.73465117]
[1756047880837,0.04,4811.4,4811.3,3.02265117]
[1756047881038,0.04,4811.4,4811.3,6.73465117]
[1756047881573,0.04,4811.4,4811.3,3.02265117]
[1756047882023,0.04,4811.4,4811.3,7.17715117]
[1756047882372,0.04,4811.4,4811.3,1.8989]
[1756047882569,0.04,4811.4,4811.3,5.6069]
[1756047882721,0.04,4811.4,4811.3,6.7124]
[1756047883332,0.04,4811.4,4811.3,8.79084033]
[1756047883549,0.04,4811.4,4811.3,6.7124]
[1756047883831,0.04,4811.4,4811.3,7.38364]
[1756047884367,0.04,4811.4,4811.3,7.38864]
[1756047884672,0.042,4811.4,4811.3,7.38964]
[1756047885031,0.042,4811.4,4811.3,6.94414]
[1756047885227,0.042,4811.4,4811.3,7.38964]
[1756047885467,0.55961881,4813.9,4811.8,0.66]
[1756047885666,0.4529,4813.3,4811.9,0.2853]
[1756047885972,0.4529,4813.3,4812.0,3.5047]
[1756047886126,0.1149,4812.1,4812.0,3.5047]
[1756047886328,0.1149,4812.1,4811.3,7.26424]
[1756047886527,0.4495,4812.0,4811.3,1.598]
[1756047886740,0.1183,4811.4,4811.3,0.27465625]
[1756047886940,0.5645,4811.4,4810.8,0.02]
[1756047887173,0.4462,4811.3,4810.8,0.02]
[1756047887367,0.4462,4811.3,4810.6,0.001]
[1756047887368,0.1215,4810.9,4810.6,0.001]
[1756047887975,0.4429,4810.8,4810.6,0.001]
[1756047888184,0.1248,4810.7,4810.6,0.001]
[1756047888349,0.5645,4810.7,4810.6,0.001]
[1756047888544,0.0645,4811.0,4810.6,0.001]
[1756047888740,0.624815,4811.9,4810.6,0.105]
[1756047888943,0.5222815,4811.8,4811.2,0.104]
[1756047889291,1.598,4812.2,4811.2,0.104]
[1756047889858,3.0,4811.7,4811.2,0.104]
[1756047890409,3.0,4811.7,4810.6,0.105]
[1756047891889,3.0,4811.1,4810.6,0.001]
[1756047892178,1.82981447,4811.0,4810.6,0.105]
[1756047892379,3.0,4811.8,4810.6,0.105]
[1756047892839,19.89614471,4812.2,4810.6,0.001]
[1756047893038,0.624755,4812.3,4810.6,0.001]
[1756047893244,0.001,4812.7,4811.9,0.104]
[1756047893544,1.96065491,4812.6,4811.9,0.104]
[1756047893878,0.001,4812.7,4812.4,0.104]
[1756047894057,0.04,4813.4,4812.4,0.104]
[1756047894745,0.02,4812.8,4812.4,0.104]
[1756047895600,0.02,4812.8,4811.3,1.598]
[1756047896319,0.02,4812.8,4812.5,0.104]
[1756047896795,0.02,4812.8,4811.4,0.4646]
[1756047897301,0.02,4812.8,4811.7,0.104]
[1756047897461,1.83181447,4812.7,4811.7,0.104]
[1756047897662,0.19382365,4812.6,4811.7,0.104]
[1756047897883,1.83181447,4812.7,4811.5,3.768]
[1756047898097,0.02,4812.8,4812.5,0.104]
[1756047898281,0.02,4812.8,4811.4,3.767]
[1756047898477,0.02,4812.8,4812.2,0.104]
[1756047898874,16.89614471,4812.7,4809.6,0.4646]
[1756047899077,0.104,4811.2,4810.5,0.104]
[1756047900280,0.104,4811.2,4809.6,0.4646]
[1756047900474,0.104,4811.2,4809.2,5.364]
[1756047900475,0.104,4811.2,4810.3,0.104]
[1756047900912,0.32520609,4811.3,4809.4,3.767]
[1756047901112,0.104,4810.7,4810.0,0.104]
[1756047901431,0.51928777,4811.3,4810.7,0.104]
[1756047901432,0.42920609,4811.3,4810.7,0.104]
[1756047902186,0.32520609,4811.3,4810.6,0.011]
[1756047902387,0.104,4811.0,4810.6,0.011]
[1756047902816,0.32520609,4811.3,4810.6,0.011]
[1756047903251,0.104,4811.0,4810.3,0.104]
[1756047903453,0.104,4811.0,4809.4,0.4646]
[1756047903629,0.104,4811.0,4810.1,0.144]
[1756047904064,0.32520609,4811.3,4810.1,0.5046]
[1756047904210,0.32520609,4811.3,4810.8,0.104]
[1756047904420,0.5279267,4811.3,4810.8,0.104]
[1756047904616,0.5279267,4811.3,4810.1,0.5046]
[1756047904914,0.104,4811.1,4810.4,0.104]
[1756047905656,1.618,4812.8,4811.0,0.3099]
[1756047905859,1.618,4812.8,4811.1,2.0626]
[1756047905860,2.0826,4812.8,4811.1,2.0626]
[1756047906040,0.24077671,4812.7,4811.2,0.4646]
[1756047906236,0.02,4812.8,4811.2,0.4646]
[1756047908160,0.02,4812.8,4811.3,2.0784401]
[1756047908450,0.02,4812.8,4811.4,0.4646]
[1756047908659,0.02,4812.8,4811.5,2.07835062]
[1756047908820,0.02,4812.8,4811.6,3.754]
[1756047909017,0.02,4812.8,4811.7,0.4646]
[1756047910046,0.02,4812.8,4812.7,0.3099]
[1756047910561,0.02,4812.8,4812.7,0.7745]
[1756047912219,0.001,4813.2,4812.9,2.07773184]
[1756047912420,0.001,4813.2,4813.1,0.3099]
[1756047912665,0.001,4813.2,4813.1,4.0559]
[1756047912867,0.001,4813.2,4813.1,4.71572067]
[1756047913081,0.001,4813.2,4813.1,7.25798371]
[1756047913573,0.001,4813.2,4813.1,7.91798371]
[1756047913979,0.001,4813.2,4813.1,2.09432067]
[1756047914134,0.001,4813.2,4813.1,5.17732067]
[1756047914334,0.001,4813.2,4813.1,10.91498371]
[1756047915280,0.001,4813.2,4813.1,5.18032067]
[1756047915457,0.001,4813.2,4813.1,4.5195]
[1756047915765,0.001,4813.2,4813.1,0.8785]
[1756047916068,0.001,4813.2,4813.1,4.6235]
[1756047916427,0.001,4813.2,4813.1,4.3126]
[1756047916743,0.001,4813.2,4813.1,0.8785]
[1756047916945,0.001,4813.2,4813.1,6.70016304]
[1756047917146,0.001,4813.2,4813.1,5.50028994]
[1756047917349,0.001,4813.2,4813.1,7.57795298]
[1756047917667,0.001,4813.2,4813.1,5.50028994]
[1756047917984,0.001,4813.2,4813.1,6.69816304]
[1756047918540,0.001,4813.2,4813.1,7.35816304]
[1756047918885,0.001,4813.2,4813.1,2.95616304]
[1756047919185,0.001,4813.2,4813.1,6.70416304]
[1756047919350,0.001,4813.2,4813.1,7.58435268]
[1756047919685,0.001,4813.2,4813.1,5.50668964]
[1756047919982,0.001,4813.2,4813.1,7.58335268]
[1756047920136,0.001,4813.2,4813.1,4.6235]
[1756047920341,0.001,4813.2,4813.1,0.4139]
[1756047920555,0.001,4813.2,4813.1,4.1589]
[1756047920742,0.001,4813.2,4813.1,4.6235]
[1756047920932,0.001,4813.2,4813.1,6.70116304]
[1756047921283,0.001,4813.2,4813.1,4.6235]
[1756047921466,0.001,4813.2,4813.1,0.8785]
[1756047921662,0.001,4813.2,4813.1,4.6225]
[1756047922549,0.001,4813.2,4813.1,6.70016304]
[1756047922753,0.001,4813.2,4813.1,4.6225]
[1756047922994,0.001,4813.2,4813.1,0.8785]
[1756047923294,0.001,4813.2,4813.1,3.845]
[1756047923586,0.001,4813.2,4813.1,4.5907]
[1756047923751,0.001,4813.2,4813.1,3.845]
[1756047923950,0.001,4813.2,4813.1,4.4867]
[1756047924154,0.001,4813.2,4813.1,4.5907]
[1756047925616,0.001,4813.2,4813.1,0.104]
[1756047925885,0.001,4813.2,4813.1,4.5847]
[1756047926682,0.001,4813.2,4813.1,4.5827]
[1756047927041,0.001,4813.2,4813.1,0.104]
[1756047927242,0.1,4813.2,4813.1,3.835]
[1756047927466,0.1,4813.2,4813.1,0.104]
[1756047927672,0.1,4813.2,4813.1,3.835]
[1756047927886,0.099,4813.2,4813.1,0.104]
[1756047928251,0.3275,4813.2,4813.1,0.104]
[1756047928592,0.3275,4813.2,4812.8,0.104]
[1756047928738,0.3275,4813.2,4812.7,3.731]
[1756047928739,0.04,4813.4,4813.1,0.3017]
[1756047928937,0.04,4813.4,4813.3,2.73757671]
[1756047929177,0.04,4813.4,4813.3,6.4277]
[1756047929474,0.04,4813.4,4813.3,8.94927671]
[1756047929688,0.04,4813.4,4813.3,5.18427671]
[1756047929974,0.04,4813.4,4813.3,7.63924224]
[1756047930171,0.04,4813.4,4813.3,9.71681895]
[1756047930838,0.04,4813.4,4813.3,7.63924224]
[1756047931037,0.04,4813.4,4813.3,9.71681895]
[1756047931475,0.04,4813.4,4813.3,3.87124224]
[1756047931775,0.04,4813.4,4813.3,3.1067]
[1756047931978,0.04,4813.4,4813.3,2.6627]
[1756047932169,0.04,4813.4,4813.3,8.94827671]
[1756047932839,0.04,4813.4,4813.3,3.1067]
[1756047933036,0.04,4813.4,4813.3,8.94527671]
[1756047933238,0.04,4813.4,4813.3,8.00834822]
[1756047933684,0.0423,4813.4,4813.1,1.597]
[1756047933863,0.0423,4813.4,4812.9,1.597]
[1756047934180,0.0423,4813.4,4813.0,3.761]
[1756047934748,0.0423,4813.4,4813.1,3.76]
[1756047935077,0.0423,4813.4,4812.8,1.597]
[1756047935078,0.0423,4813.4,4813.2,3.759]
[1756047935461,0.0423,4813.4,4812.8,1.597]
[1756047935462,0.2699,4813.4,4812.8,1.597]
[1756047935777,0.2699,4813.4,4812.9,3.758]
[1756047936091,0.0423,4813.4,4812.9,3.758]
[1756047936255,0.2699,4813.4,4812.9,3.758]
[1756047936450,0.0423,4813.4,4812.9,3.758]
[1756047936969,0.2699,4813.4,4812.9,3.758]
[1756047937282,0.04,4813.4,4813.0,0.444]
[1756047937578,0.04,4813.4,4813.1,1.0239]
[1756047937785,0.04,4813.4,4813.3,0.3017]
[1756047937977,0.041,4813.4,4812.8,1.608]
[1756047938147,0.041,4813.4,4812.9,3.755]
[1756047938556,0.041,4813.4,4812.8,1.608]
[1756047938854,0.041,4813.4,4812.9,3.753]
[1756047939054,0.041,4813.4,4813.3,0.3017]
[1756047939469,0.041,4813.4,4813.3,0.7457]
[1756047940767,0.041,4813.4,4813.3,4.4987]
[1756047941001,0.041,4813.4,4813.3,6.57627671]
[1756047941204,0.041,4813.4,4813.3,7.23627671]
[1756047941504,0.041,4813.4,4813.3,8.22127995]
[1756047944110,0.041,4813.4,4813.3,8.32527995]
[1756047945478,0.041,4813.4,4813.3,4.57227995]
[1756047945686,0.041,4813.4,4813.3,2.49470324]
[1756047945875,0.041,4813.4,4813.3,3.58727671]
[1756047946095,0.041,4813.4,4813.3,7.32827671]
[1756047949615,0.001,4813.9,4813.6,2.07744723]
[1756047949783,0.041,4814.4,4814.3,2.07714517]
[1756047949988,0.041,4814.4,4814.3,7.48358283]
[1756047950182,0.041,4814.4,4814.3,11.21858283]
[1756047950587,0.041,4814.4,4814.3,13.41158283]
[1756047950998,0.041,4814.4,4814.3,9.67658283]
[1756047951303,0.041,4814.4,4814.3,13.40958283]
[1756047951809,0.041,4814.4,4814.3,9.67658283]
[1756047951984,0.041,4814.4,4814.3,13.40958283]
[1756047952187,15.24024398,4818.2,4814.9,4.26988633]
[1756047952394,15.24024398,4818.2,4815.7,2.07649893]
[1756047952395,0.2308,4817.3,4815.7,2.07649893]
[1756047952615,0.2308,4817.3,4815.8,4.393]
[1756047952788,0.2308,4817.3,4815.9,1.597]
[1756047953799,0.099,4816.0,4815.9,1.597]
[1756047954199,0.0023,4816.0,4815.9,5.327]
[1756047954402,0.2093,4816.0,4815.9,5.327]
[1756047954942,0.2093,4816.0,4815.9,1.597]
[1756047955316,0.1593,4816.0,4815.9,5.325]
[1756047955639,0.1593,4816.0,4814.3,1.00073766]
[1756047955640,0.1593,4816.0,4815.2,1.597]
[1756047955822,0.1593,4816.0,4815.3,3.727]
[1756047956340,0.1796,4816.0,4815.4,3.726]
[1756047956562,0.1796,4816.0,4815.2,1.597]
[1756047956841,0.1796,4816.0,4815.3,3.725]
[1756047956842,0.0203,4815.9,4815.3,3.725]
[1756047957019,0.1084,4815.4,4815.3,3.725]
[1756047957543,0.1084,4815.4,4815.3,3.724]
[1756047957743,0.1084,4815.4,4815.3,3.723]
[1756047958133,0.32486807,4816.7,4815.4,0.66]
[1756047958325,0.02,4817.8,4815.7,0.66]
[1756047958506,0.02,4817.8,4815.9,0.66]
[1756047958842,0.02,4817.8,4816.3,0.66]
[1756047959048,0.02,4817.8,4817.3,0.3147]
[1756047959361,0.02,4817.8,4817.3,6.1349]
[1756047959520,0.02,4817.8,4817.4,1.0992]
[1756047959712,0.02,4817.8,4817.7,0.9747]
[1756047959915,0.02,4817.8,4817.7,4.7637]
[1756047960225,0.02,4817.8,4817.7,5.3069]
[1756047960423,0.02,4817.8,4817.7,5.3059]
[1756047961024,0.02,4817.8,4817.7,7.38157926]
[1756047961448,0.02,4817.8,4817.7,8.2121935]
[1756047961612,0.02,4817.8,4817.7,6.13651424]
[1756047961915,0.02,4817.8,4817.7,8.2121935]
[1756047962335,0.02,4817.8,4817.7,8.1081935]
[1756047962553,0.02,4817.8,4817.7,5.1999]
[1756047963066,0.02,4817.8,4817.7,7.27557926]
[1756047963254,0.041,4818.4,4817.8,3.0]
[1756047963454,0.041,4818.4,4818.3,2.39012079]
[1756047963650,0.04,4819.4,4819.3,0.66]
[1756047963850,0.04,4821.4,4819.4,0.66]
[1756047964050,0.04,4821.4,4820.3,0.66]
[1756047964250,0.04,4821.4,4820.3,8.89545967]
[1756047964449,0.04,4821.4,4820.3,2.5707]
[1756047964762,0.04,4821.4,4820.3,6.8209]
[1756047965061,0.04,4821.4,4820.3,6.8199]
[1756047965261,0.04,4821.4,4820.3,6.8209]
[1756047965428,0.04,4821.4,4820.3,1.596]
[1756047965635,0.04,4821.4,4820.3,5.407]
[1756047965636,0.2618,4821.3,4820.3,5.407]
[1756047965862,0.04,4821.4,4820.3,1.596]
[1756047966074,0.04,4821.4,4820.3,5.407]
[1756047966251,0.04,4821.4,4820.3,1.596]
[1756047966642,0.3477,4820.4,4820.3,5.41]
[1756047967255,0.04,4820.4,4820.3,5.41]
[1756047967871,0.04,4820.4,4820.3,6.1639]
[1756047968165,0.04,4820.4,4820.3,6.34109]
[1756047968371,0.04,4820.4,4820.3,5.408]
[1756047968575,0.04,4820.4,4820.3,5.41]
[1756047969161,0.04,4820.4,4820.3,6.1639]
[1756047969354,0.04,4820.4,4820.3,5.41]
[1756047969531,0.04,4820.4,4820.3,1.596]
[1756047969735,0.0885,4820.4,4820.3,5.409]
[1756047970341,0.04,4820.4,4820.3,7.3638]
[1756047970875,0.04,4820.4,4820.3,1.596]
[1756047971181,0.04,4820.4,4820.3,5.413]
[1756047971734,0.0885,4820.4,4820.3,5.412]
[1756047972305,0.0906,4820.4,4820.3,5.516]
[1756047972883,0.0906,4820.4,4820.3,5.512]
[1756047973868,0.0906,4820.4,4820.3,3.916]
[1756047974054,0.3482,4820.4,4820.3,0.104]
[1756047974254,0.68502,4820.4,4820.3,0.104]
[1756047974649,0.68502,4820.4,4819.8,0.02]
[1756047974973,0.2576,4820.3,4819.8,0.02]
[1756047975176,0.0527,4819.9,4819.8,0.02]
[1756047975540,0.3083,4819.9,4819.8,0.02]
[1756047975874,0.04,4820.4,4819.8,3.93]
[1756047976243,0.04,4820.4,4820.3,0.104]
[1756047977068,0.04,4820.4,4820.3,3.919]
[1756047979438,0.04,4820.4,4820.3,4.3582]
[1756047979691,0.04,4820.4,4820.3,4.6729]
[1756047980549,0.04,4820.4,4820.3,3.919]
[1756047980782,0.04,4820.4,4820.3,3.908]
[1756047980974,0.04,4820.4,4820.3,0.104]
[1756047981668,0.04,4820.4,4820.3,3.905]
[1756047981844,0.04,4820.4,4820.3,0.104]
[1756047982042,0.04,4820.4,4820.3,3.905]
[1756047982563,0.0885,4820.4,4820.3,0.104]
[1756047983250,0.139,4820.4,4820.3,3.903]
[1756047984299,0.139,4820.4,4820.3,0.104]
[1756047984661,0.1406,4820.4,4820.3,0.104]
[1756047985247,0.04,4820.4,4820.3,0.104]
[1756047985503,0.1422,4820.4,4820.3,0.104]
[1756047985851,0.3492,4820.4,4820.3,0.104]
[1756047986092,0.59356084,4820.4,4819.2,3.791]
[1756047986258,0.2518,4820.3,4819.8,0.104]
[1756047986456,0.0892,4819.9,4819.5,0.104]
[1756047986670,0.104,4820.2,4819.5,0.104]
[1756047986875,0.02,4820.8,4819.5,3.79]
[1756047987497,0.02,4820.8,4819.6,0.4457]
[1756047988302,0.02,4820.8,4819.8,0.011]
[1756047988536,0.0892,4819.9,4819.8,0.011]
[1756047989029,0.001,4820.4,4819.8,0.011]
[1756047991023,0.001,4820.4,4819.9,0.4457]
[1756047991796,0.001,4820.4,4820.3,0.3134]
[1756047992014,0.001,4820.4,4820.3,0.7591]
[1756047992342,0.001,4820.4,4820.3,4.5491]
[1756047992495,0.001,4820.4,4820.3,5.00401]
[1756047993433,0.001,4820.4,4820.3,4.5491]
[1756047994532,0.001,4820.4,4819.8,0.011]
[1756047994731,0.001,4820.4,4819.9,3.783]
[1756047995111,0.001,4820.4,4819.9,3.786]
[1756047995310,0.001,4820.4,4819.8,0.011]
[1756047995311,0.001,4820.4,4820.0,3.785]
[1756047995526,0.0892,4820.1,4819.8,3.808]
[1756047995820,0.001,4820.4,4819.8,0.011]
[1756047996018,0.001,4820.4,4819.9,0.4457]
[1756047996221,0.001,4820.4,4819.8,0.011]
[1756047996422,0.001,4820.4,4820.3,0.3134]
[1756047996645,0.001,4820.4,4820.3,4.5551]
[1756047996812,0.001,4820.4,4820.3,4.6591]
[1756047998776,0.001,4820.4,4820.3,0.4174]
[1756047998941,0.001,4820.4,4820.3,4.6541]
[1756048001158,0.001,4820.4,4820.3,5.01551]
[1756048001487,0.001,4820.4,4820.3,7.09006967]
[1756048002072,0.02,4820.8,4820.7,2.07438753]
[1756048002275,0.02,4820.8,4820.7,7.76778753]
[1756048002575,0.02,4820.8,4820.7,8.21348753]
[1756048002736,0.02,4820.8,4820.7,9.49627884]
[1756048002934,0.02,4820.8,4820.7,10.15627884]
[1756048003168,0.02,4820.8,4820.7,12.34927884]
[1756048003556,0.02,4820.8,4820.7,10.15527884]
[1756048004702,0.02,4820.8,4820.7,12.34827884]
[1756048005039,0.02,4820.8,4820.7,8.56427884]
[1756048005306,0.041,4821.4,4821.0,2.193]
[1756048005440,0.041,4821.4,4821.3,5.24052938]
[1756048005877,0.041,4821.4,4821.3,5.68622938]
[1756048006082,0.01000001,4822.4,4822.3,2.73369927]
[1756048006248,0.01000001,4822.4,4822.3,8.96509927]
[1756048006454,0.01000001,4822.4,4822.3,9.41079927]
[1756048006855,0.01000001,4822.4,4822.3,5.61979927]
[1756048007071,0.01000001,4822.4,4822.3,9.40979927]
[1756048007280,0.01000001,4822.4,4822.3,6.6741]
[1756048007458,0.01000001,4822.4,4822.3,8.74779927]
[1756048008267,0.01000001,4822.4,4822.3,2.8861]
[1756048008495,0.01000001,4822.4,4822.3,6.1411]
[1756048008675,0.01000001,4822.4,4822.3,5.6954]
[1756048008886,0.01000001,4822.4,4822.3,5.381]
[1756048009250,0.01000001,4822.4,4822.3,1.595]
[1756048009566,0.01000001,4822.4,4822.3,5.379]
[1756048010485,0.09920001,4822.4,4822.3,5.383]
[1756048010646,0.37010001,4822.4,4820.3,0.4567]
[1756048010842,3.0,4821.7,4820.4,1.595]
[1756048011045,0.091,4820.5,4820.4,1.595]
[1756048011287,0.091,4820.5,4820.4,5.395]
[1756048011481,3.2728,4821.7,4820.4,5.499]
[1756048011697,3.2728,4821.7,4821.5,0.104]
[1756048011892,1.88607015,4821.6,4821.5,0.104]
[1756048012499,1.88607015,4821.6,4821.3,0.104]
[1756048012662,0.2709,4821.5,4821.3,0.104]
[1756048012859,0.091,4821.4,4821.3,0.104]
[1756048013067,0.3601,4821.4,4820.9,0.104]
[1756048013392,0.96510729,4821.3,4820.9,0.104]
[1756048013602,0.0928,4821.0,4820.9,0.104]
[1756048014559,0.3245122,4822.1,4820.9,0.104]
[1756048014792,0.3245122,4822.1,4821.0,3.795]
[1756048015006,0.3245122,4822.1,4820.8,0.02]
[1756048015007,0.0892,4821.1,4820.8,3.815]
[1756048015771,0.0892,4821.1,4821.0,0.104]
[1756048016860,0.3601,4821.1,4820.8,0.02]
[1756048017057,0.0892,4821.1,4820.8,0.02]
[1756048017279,0.0508,4821.1,4821.0,0.104]
[1756048017800,0.04005355,4821.1,4821.0,0.104]
[1756048017969,0.3245302,4821.4,4821.0,0.104]
[1756048018160,0.623485,4821.8,4821.0,0.104]
[1756048018161,0.2236,4822.5,4821.0,1.2638]
[1756048018362,0.623362,4822.6,4822.1,0.104]
[1756048018572,0.0405,4822.2,4822.1,0.104]
[1756048019997,0.0405,4822.2,4821.9,3.787]
[1756048020299,0.0405,4822.2,4821.9,3.891]
[1756048020874,0.0405,4822.2,4821.9,0.104]
[1756048021265,0.747351,4822.8,4821.9,0.104]
[1756048021599,0.02,4822.8,4822.0,0.4536]
[1756048021897,0.3353052,4822.9,4822.0,0.4536]
[1756048021898,0.31530521,4822.9,4822.0,0.4536]
[1756048022101,0.31530521,4822.9,4822.3,0.104]
[1756048022276,0.0405,4822.4,4822.2,3.782]
[1756048022482,0.0405,4822.4,4822.0,3.782]
[1756048022667,0.0405,4822.4,4822.3,0.104]
[1756048022872,0.31530521,4822.9,4822.3,0.104]
[1756048023103,0.2619,4822.4,4822.3,0.104]
[1756048023403,1.49795571,4822.8,4821.9,3.782]